[Event "Titled Tuesday Blitz November 07 Early 2023"]
[White "ChainedDowntohell"]
[Black "Galchenko, Matvey"]
[BlackFideId "24175480"]
[WhiteElo "2504"]
[BlackElo "2936"]
[Result "0-1"]
[Round "5"]
[TimeControl "180+1"]
[Date "2023.11.07"]
[WhiteClock "0:00:00"]
[BlackClock "0:00:04"]
[Board "85"]

1. d4 {[%clk 0:03:00]}  d5 {[%clk 0:02:54]} 2. c4 {[%clk 0:03:00]}  e6 {[%clk 0:02:54]} 3. Nf3 {[%clk 0:03:00]}  c6 {[%clk 0:02:53]} 4. cxd5 {[%clk 0:02:54]}  exd5 {[%clk 0:02:49]} 5. Qc2 {[%clk 0:02:54]}  Bd6 {[%clk 0:02:47]} 6. Nc3 {[%clk 0:02:53]}  Ne7 {[%clk 0:02:47]} 7. Bg5 {[%clk 0:02:52]}  f6 {[%clk 0:02:46]} 8. Bd2 {[%clk 0:02:50]}  Bf5 {[%clk 0:02:43]} 9. e4 {[%clk 0:02:50]}  dxe4 {[%clk 0:02:40]} 10. Nxe4 {[%clk 0:02:50]}  Bc7 {[%clk 0:02:23]} 11. Bc4 {[%clk 0:02:30]}  Nd7 {[%clk 0:01:58]} 12. O-O {[%clk 0:02:21]}  Nb6 {[%clk 0:01:58]} 13. Rfe1 {[%clk 0:02:09]}  Nxc4 {[%clk 0:01:55]} 14. Qxc4 {[%clk 0:02:09]}  Qd5 {[%clk 0:01:18]} 15. Qxd5 {[%clk 0:02:08]}  cxd5 {[%clk 0:01:19]} 16. Ng3 {[%clk 0:02:07]}  Bxg3 {[%clk 0:01:01]} 17. Bb4 {[%clk 0:01:40]}  Bxf2+ {[%clk 0:00:48]} 18. Kxf2 {[%clk 0:01:38]}  Be4 {[%clk 0:00:48]} 19. Rac1 {[%clk 0:01:28]}  Nc6 {[%clk 0:00:41]} 20. Bc5 {[%clk 0:01:21]}  Kd7 {[%clk 0:00:40]} 21. Nd2 {[%clk 0:01:19]}  Bg6 {[%clk 0:00:37]} 22. Re3 {[%clk 0:01:15]}  Rhe8 {[%clk 0:00:30]} 23. Rce1 {[%clk 0:01:12]}  Rxe3 {[%clk 0:00:27]} 24. Rxe3 {[%clk 0:01:13]}  Rc8 {[%clk 0:00:16]} 25. Ba3 {[%clk 0:01:06]}  Re8 {[%clk 0:00:08]} 26. Rxe8 {[%clk 0:01:05]}  Kxe8 {[%clk 0:00:09]} 27. Ke3 {[%clk 0:01:04]}  Kd7 {[%clk 0:00:09]} 28. Bf8 {[%clk 0:01:02]}  Ne7 {[%clk 0:00:07]} 29. g4 {[%clk 0:01:01]}  f5 {[%clk 0:00:04]} 30. h3 {[%clk 0:00:55]}  fxg4 {[%clk 0:00:04]} 31. hxg4 {[%clk 0:00:56]}  h5 {[%clk 0:00:05]} 32. Bxg7 {[%clk 0:00:51]}  hxg4 {[%clk 0:00:04]} 33. Kf4 {[%clk 0:00:52]}  Bf5 {[%clk 0:00:03]} 34. Nf1 {[%clk 0:00:45]}  Be6 {[%clk 0:00:03]} 35. Ne3 {[%clk 0:00:43]}  Ng6+ {[%clk 0:00:04]} 36. Kg5 {[%clk 0:00:43]}  Ne7 {[%clk 0:00:02]} 37. Nxg4 {[%clk 0:00:41]}  Bxg4 {[%clk 0:00:02]} 38. Kxg4 {[%clk 0:00:42]}  Nc6 {[%clk 0:00:03]} 39. Kf4 {[%clk 0:00:41]}  Ke6 {[%clk 0:00:03]} 40. Ke3 {[%clk 0:00:30]}  Kf5 {[%clk 0:00:04]} 41. Bf8 {[%clk 0:00:29]}  a6 {[%clk 0:00:04]} 42. Bc5 {[%clk 0:00:29]}  Nd8 {[%clk 0:00:04]} 43. Bd6 {[%clk 0:00:29]}  Ne6 {[%clk 0:00:04]} 44. Be5 {[%clk 0:00:29]}  Nd8 {[%clk 0:00:04]} 45. Bd6 {[%clk 0:00:30]}  Ke6 {[%clk 0:00:04]} 46. Bc7 {[%clk 0:00:29]}  Nc6 {[%clk 0:00:04]} 47. Bg3 {[%clk 0:00:25]}  Nb4 {[%clk 0:00:05]} 48. a3 {[%clk 0:00:24]}  Nc6 {[%clk 0:00:05]} 49. Be1 {[%clk 0:00:20]}  Kf5 {[%clk 0:00:06]} 50. Bd2 {[%clk 0:00:17]}  Nd8 {[%clk 0:00:06]} 51. Be1 {[%clk 0:00:16]}  Ne6 {[%clk 0:00:06]} 52. Bg3 {[%clk 0:00:17]}  Ng5 {[%clk 0:00:06]} 53. Bb8 {[%clk 0:00:16]}  Ne4 {[%clk 0:00:05]} 54. Bc7 {[%clk 0:00:17]}  Nf6 {[%clk 0:00:05]} 55. Bb8 {[%clk 0:00:16]}  Nd7 {[%clk 0:00:06]} 56. Bd6 {[%clk 0:00:16]}  Ke6 {[%clk 0:00:07]} 57. Bh2 {[%clk 0:00:16]}  Nb6 {[%clk 0:00:07]} 58. Kd3 {[%clk 0:00:15]}  Nc4 {[%clk 0:00:07]} 59. Kc3 {[%clk 0:00:13]}  Kf5 {[%clk 0:00:08]} 60. a4 {[%clk 0:00:11]}  Ke4 {[%clk 0:00:08]} 61. b3 {[%clk 0:00:12]}  Na5 {[%clk 0:00:05]} 62. Bd6 {[%clk 0:00:07]}  Nc6 {[%clk 0:00:05]} 63. Bc5 {[%clk 0:00:08]}  Kf5 {[%clk 0:00:03]} 64. Kd3 {[%clk 0:00:07]}  Kf4 {[%clk 0:00:03]} 65. Bd6+ {[%clk 0:00:06]}  Kf3 {[%clk 0:00:04]} 66. Bc7 {[%clk 0:00:01]}  Kg4 {[%clk 0:00:04]} 67. Bd6 {[%clk 0:00:02]}  Kf5 {[%clk 0:00:05]} 68. Bc5 {[%clk 0:00:02]}  Ke6 {[%clk 0:00:06]} 69. Kc3 {[%clk 0:00:02]}  Kd7 {[%clk 0:00:06]} 70. Kd3 {[%clk 0:00:02]}  Nd8 {[%clk 0:00:06]} 71. Bb6 {[%clk 0:00:01]}  Ne6 {[%clk 0:00:07]} 72. Ba5 {[%clk 0:00:02]}  Kc6 {[%clk 0:00:08]} 73. Bd2 {[%clk 0:00:02]}  Ng7 {[%clk 0:00:08]} 74. Be3 {[%clk 0:00:03]}  Nf5 {[%clk 0:00:09]} 75. Bd2 {[%clk 0:00:03]}  Nd6 {[%clk 0:00:10]} 76. Be3 {[%clk 0:00:04]}  Ne4 {[%clk 0:00:10]} 77. Bg1 {[%clk 0:00:04]}  Kd7 {[%clk 0:00:10]} 78. Be3 {[%clk 0:00:05]}  Nf6 {[%clk 0:00:11]} 79. Bf4 {[%clk 0:00:05]}  Ne8 {[%clk 0:00:12]} 80. Be5 {[%clk 0:00:06]}  Kc6 {[%clk 0:00:13]} 81. Bg3 {[%clk 0:00:06]}  Nf6 {[%clk 0:00:13]} 82. Be5 {[%clk 0:00:07]}  Nd7 {[%clk 0:00:14]} 83. Bf4 {[%clk 0:00:07]}  Nb6 {[%clk 0:00:14]} 84. Kc3 {[%clk 0:00:07]}  Kd7 {[%clk 0:00:15]} 85. Kd3 {[%clk 0:00:08]}  Nc8 {[%clk 0:00:15]} 86. Be5 {[%clk 0:00:08]}  Na7 {[%clk 0:00:16]} 87. Bg3 {[%clk 0:00:09]}  Nc6 {[%clk 0:00:17]} 88. Bf2 {[%clk 0:00:09]}  Ke6 {[%clk 0:00:17]} 89. Bg3 {[%clk 0:00:09]}  Kf5 {[%clk 0:00:18]} 90. Bh4 {[%clk 0:00:09]}  Kf4 {[%clk 0:00:18]} 91. Bf6 {[%clk 0:00:09]}  Kf3 {[%clk 0:00:19]} 92. Bg7 {[%clk 0:00:10]}  Nb4+ {[%clk 0:00:19]} 93. Kc3 {[%clk 0:00:10]}  Nc6 {[%clk 0:00:19]} 94. Kd3 {[%clk 0:00:10]}  Na5 {[%clk 0:00:18]} 95. Kc3 {[%clk 0:00:10]}  Ke4 {[%clk 0:00:17]} 96. Bf6 {[%clk 0:00:09]}  Nc6 {[%clk 0:00:17]} 97. Bg7 {[%clk 0:00:09]}  Ne7 {[%clk 0:00:17]} 98. Bf6 {[%clk 0:00:08]}  Nf5 {[%clk 0:00:18]} 99. Bh8 {[%clk 0:00:05]}  Ng3 {[%clk 0:00:18]} 100. Kb4 {[%clk 0:00:03]}  Ne2 {[%clk 0:00:12]} 101. Kc5 {[%clk 0:00:03]}  b5 {[%clk 0:00:08]} 102. axb5 {[%clk 0:00:03]}  axb5 {[%clk 0:00:08]} 103. Kxb5 {[%clk 0:00:02]}  Nxd4+ {[%clk 0:00:09]} 104. Ka4 {[%clk 0:00:01]}  Nc6 {[%clk 0:00:04]} 105. b4 {[%clk 0:00:01]}  Ne5 {[%clk 0:00:03]} 106. b5 {[%clk 0:00:00]}  d4 {[%clk 0:00:04]} 0-1


[Site "https://www.chess.com"]

[Event "Titled Tuesday Blitz November 07 Early 2023"]
[White "Minko, Dmitry"]
[Black "Ashraf, Artin"]
[WhiteFideId "24188468"]
[BlackFideId "22514805"]
[WhiteElo "2499"]
[BlackElo "2876"]
[Result "0-1"]
[Round "5"]
[TimeControl "180+1"]
[Date "2023.11.07"]
[WhiteClock "0:00:00"]
[BlackClock "0:00:53"]
[Board "86"]

1. e4 {[%clk 0:02:56]}  c5 {[%clk 0:02:55]} 2. Nf3 {[%clk 0:02:56]}  d6 {[%clk 0:02:55]} 3. d4 {[%clk 0:02:57]}  cxd4 {[%clk 0:02:56]} 4. Nxd4 {[%clk 0:02:58]}  Nf6 {[%clk 0:02:55]} 5. Nc3 {[%clk 0:02:59]}  a6 {[%clk 0:02:56]} 6. f3 {[%clk 0:02:59]}  g6 {[%clk 0:02:52]} 7. Be3 {[%clk 0:02:59]}  Bg7 {[%clk 0:02:49]} 8. Qd2 {[%clk 0:02:59]}  h5 {[%clk 0:02:48]} 9. O-O-O {[%clk 0:02:56]}  b5 {[%clk 0:02:48]} 10. Kb1 {[%clk 0:02:56]}  Bb7 {[%clk 0:02:47]} 11. h4 {[%clk 0:02:32]}  Nbd7 {[%clk 0:02:46]} 12. g3 {[%clk 0:02:30]}  Qc7 {[%clk 0:02:42]} 13. Rh2 {[%clk 0:02:21]}  Ne5 {[%clk 0:02:41]} 14. Bf4 {[%clk 0:02:09]}  Ned7 {[%clk 0:02:35]} 15. Re2 {[%clk 0:02:04]}  O-O {[%clk 0:02:32]} 16. Be3 {[%clk 0:01:46]}  Nb6 {[%clk 0:02:31]} 17. Rh2 {[%clk 0:01:42]}  b4 {[%clk 0:02:30]} 18. Nce2 {[%clk 0:01:38]}  Nc4 {[%clk 0:02:29]} 19. Qc1 {[%clk 0:01:39]}  a5 {[%clk 0:01:44]} 20. Bh6 {[%clk 0:01:33]}  a4 {[%clk 0:01:42]} 21. Bxg7 {[%clk 0:01:22]}  Kxg7 {[%clk 0:01:42]} 22. Nb5 {[%clk 0:00:55]}  Qc5 {[%clk 0:01:40]} 23. Ned4 {[%clk 0:00:55]}  Nb6 {[%clk 0:01:24]} 24. g4 {[%clk 0:00:48]}  hxg4 {[%clk 0:01:16]} 25. h5 {[%clk 0:00:40]}  g3 {[%clk 0:01:13]} 26. hxg6 {[%clk 0:00:28]}  gxh2 {[%clk 0:01:08]} 27. Nf5+ {[%clk 0:00:22]}  Qxf5 {[%clk 0:01:08]} 28. exf5 {[%clk 0:00:23]}  h1=Q {[%clk 0:01:08]} 29. gxf7 {[%clk 0:00:20]}  Bxf3 {[%clk 0:01:01]} 30. Be2 {[%clk 0:00:13]}  Qh5 {[%clk 0:00:58]} 31. Rg1+ {[%clk 0:00:12]}  Kxf7 {[%clk 0:00:59]} 32. Qe3 {[%clk 0:00:02]}  Qxf5 {[%clk 0:00:54]} 33. Bxf3 {[%clk 0:00:00]}  Qxb5 {[%clk 0:00:53]} 0-1


[Site "https://www.chess.com"]

[Event "Titled Tuesday Blitz November 07 Early 2023"]
[White "Dragun, Kamil"]
[Black "Reprintsev, Alexander"]
[WhiteFideId "1134167"]
[BlackFideId "14100541"]
[WhiteElo "2796"]
[BlackElo "2499"]
[Result "1-0"]
[Round "5"]
[TimeControl "180+1"]
[Date "2023.11.07"]
[WhiteClock "0:00:29"]
[BlackClock "0:00:00"]
[Board "87"]

1. d4 {[%clk 0:03:00]}  d5 {[%clk 0:02:48]} 2. c4 {[%clk 0:02:59]}  e5 {[%clk 0:02:48]} 3. dxe5 {[%clk 0:02:58]}  d4 {[%clk 0:02:48]} 4. Nf3 {[%clk 0:02:58]}  Nc6 {[%clk 0:02:48]} 5. Nbd2 {[%clk 0:02:58]}  a5 {[%clk 0:02:47]} 6. Nb3 {[%clk 0:02:49]}  Bg4 {[%clk 0:02:47]} 7. Nbxd4 {[%clk 0:02:42]}  Bc5 {[%clk 0:02:38]} 8. e3 {[%clk 0:02:14]}  Nxd4 {[%clk 0:02:37]} 9. exd4 {[%clk 0:02:12]}  Bxf3 {[%clk 0:02:36]} 10. Qxf3 {[%clk 0:02:07]}  Qxd4 {[%clk 0:02:36]} 11. Be2 {[%clk 0:01:53]}  Bb4+ {[%clk 0:02:14]} 12. Kf1 {[%clk 0:01:53]}  Ne7 {[%clk 0:02:10]} 13. g3 {[%clk 0:01:53]}  O-O {[%clk 0:02:09]} 14. Kg2 {[%clk 0:01:52]}  Nc6 {[%clk 0:02:09]} 15. Qe3 {[%clk 0:01:31]}  Rfe8 {[%clk 0:01:55]} 16. f4 {[%clk 0:01:19]}  f6 {[%clk 0:01:51]} 17. Rd1 {[%clk 0:01:11]}  Qxe3 {[%clk 0:01:50]} 18. Bxe3 {[%clk 0:01:11]}  fxe5 {[%clk 0:01:50]} 19. f5 {[%clk 0:01:12]}  e4 {[%clk 0:01:48]} 20. c5 {[%clk 0:01:06]}  a4 {[%clk 0:01:45]} 21. a3 {[%clk 0:01:06]}  Ba5 {[%clk 0:01:45]} 22. Rd7 {[%clk 0:01:02]}  Re7 {[%clk 0:01:39]} 23. Rxe7 {[%clk 0:01:00]}  Nxe7 {[%clk 0:01:38]} 24. Rd1 {[%clk 0:01:00]}  Nxf5 {[%clk 0:01:37]} 25. Bf4 {[%clk 0:00:58]}  Re8 {[%clk 0:01:26]} 26. g4 {[%clk 0:00:52]}  Nh4+ {[%clk 0:01:24]} 27. Kf2 {[%clk 0:00:42]}  Rf8 {[%clk 0:01:16]} 28. Kg3 {[%clk 0:00:38]}  Ng6 {[%clk 0:01:16]} 29. Be3 {[%clk 0:00:37]}  c6 {[%clk 0:01:14]} 30. Rd7 {[%clk 0:00:35]}  Bd8 {[%clk 0:01:06]} 31. g5 {[%clk 0:00:31]}  h6 {[%clk 0:00:48]} 32. gxh6 {[%clk 0:00:30]}  Bh4+ {[%clk 0:00:46]} 33. Kh3 {[%clk 0:00:31]}  gxh6 {[%clk 0:00:46]} 34. Bxh6 {[%clk 0:00:30]}  Rf2 {[%clk 0:00:45]} 35. Rg7+ {[%clk 0:00:27]}  Kh8 {[%clk 0:00:45]} 36. Rxg6 {[%clk 0:00:28]}  Rxe2 {[%clk 0:00:00]} 37. Kxh4 {[%clk 0:00:29]} 1-0


[Site "https://www.chess.com"]

[Event "Titled Tuesday Blitz November 07 Early 2023"]
[White "Lehtosaari, Mauri"]
[Black "Weetik, Vjacheslav"]
[WhiteFideId "501999"]
[BlackFideId "4153472"]
[WhiteElo "2496"]
[BlackElo "2771"]
[Result "0-1"]
[Round "5"]
[TimeControl "180+1"]
[Date "2023.11.07"]
[WhiteClock "0:00:56"]
[BlackClock "0:00:53"]
[Board "89"]

1. d4 {[%clk 0:03:00]}  Nf6 {[%clk 0:02:59]} 2. Nf3 {[%clk 0:02:56]}  g6 {[%clk 0:02:59]} 3. Bg5 {[%clk 0:02:55]}  Bg7 {[%clk 0:02:59]} 4. Nbd2 {[%clk 0:02:56]}  d5 {[%clk 0:02:59]} 5. e3 {[%clk 0:02:56]}  O-O {[%clk 0:02:59]} 6. Bd3 {[%clk 0:02:56]}  Nbd7 {[%clk 0:02:59]} 7. O-O {[%clk 0:02:56]}  c5 {[%clk 0:02:59]} 8. c3 {[%clk 0:02:57]}  Re8 {[%clk 0:03:00]} 9. b4 {[%clk 0:02:47]}  c4 {[%clk 0:02:57]} 10. Bc2 {[%clk 0:02:47]}  h6 {[%clk 0:02:54]} 11. Bh4 {[%clk 0:02:47]}  g5 {[%clk 0:02:45]} 12. Bg3 {[%clk 0:02:47]}  Nh5 {[%clk 0:02:45]} 13. Be5 {[%clk 0:02:47]}  f6 {[%clk 0:01:42]} 14. Bg3 {[%clk 0:02:44]}  Nxg3 {[%clk 0:01:32]} 15. hxg3 {[%clk 0:02:44]}  e5 {[%clk 0:01:32]} 16. a4 {[%clk 0:02:35]}  e4 {[%clk 0:01:28]} 17. Nh2 {[%clk 0:02:31]}  f5 {[%clk 0:01:28]} 18. f3 {[%clk 0:02:22]}  Nf6 {[%clk 0:01:25]} 19. fxe4 {[%clk 0:02:21]}  fxe4 {[%clk 0:01:23]} 20. Qe2 {[%clk 0:02:00]}  Qd6 {[%clk 0:01:21]} 21. Rxf6 {[%clk 0:01:38]}  Qxf6 {[%clk 0:01:16]} 22. g4 {[%clk 0:01:35]}  Qd6 {[%clk 0:01:09]} 23. Ndf1 {[%clk 0:01:32]}  Rf8 {[%clk 0:01:07]} 24. Qe1 {[%clk 0:01:30]}  Bd7 {[%clk 0:01:01]} 25. Ng3 {[%clk 0:01:28]}  Rf7 {[%clk 0:01:01]} 26. Nf5 {[%clk 0:01:12]}  Bxf5 {[%clk 0:00:59]} 27. gxf5 {[%clk 0:01:12]}  Rxf5 {[%clk 0:01:00]} 28. Bd1 {[%clk 0:01:07]}  Raf8 {[%clk 0:00:59]} 29. Bg4 {[%clk 0:01:04]}  Rf2 {[%clk 0:00:55]} 30. Nf1 {[%clk 0:00:56]}  Rxf1+ {[%clk 0:00:53]} 0-1


[Site "https://www.chess.com"]

[Event "Titled Tuesday Blitz November 07 Early 2023"]
[White "Willy, Stephen"]
[Black "Danielyan, Vahe"]
[WhiteFideId "30981468"]
[BlackFideId "13304828"]
[WhiteElo "2489"]
[BlackElo "2719"]
[Result "0-1"]
[Round "5"]
[TimeControl "180+1"]
[Date "2023.11.07"]
[WhiteClock "0:00:13"]
[BlackClock "0:01:07"]
[Board "93"]

1. e4 {[%clk 0:03:00]}  c6 {[%clk 0:03:00]} 2. d4 {[%clk 0:02:59]}  d5 {[%clk 0:03:00]} 3. Nc3 {[%clk 0:02:59]}  dxe4 {[%clk 0:03:00]} 4. Nxe4 {[%clk 0:02:59]}  Nf6 {[%clk 0:03:00]} 5. Nxf6+ {[%clk 0:02:59]}  exf6 {[%clk 0:03:01]} 6. c3 {[%clk 0:02:59]}  Bd6 {[%clk 0:03:02]} 7. Bd3 {[%clk 0:02:59]}  O-O {[%clk 0:03:00]} 8. Qh5 {[%clk 0:02:52]}  Re8+ {[%clk 0:02:59]} 9. Ne2 {[%clk 0:02:51]}  g6 {[%clk 0:02:59]} 10. Qh4 {[%clk 0:02:49]}  Nd7 {[%clk 0:02:52]} 11. O-O {[%clk 0:02:48]}  Nf8 {[%clk 0:02:48]} 12. Bf4 {[%clk 0:02:25]}  Rxe2 {[%clk 0:02:02]} 13. Bxd6 {[%clk 0:02:09]}  Rd2 {[%clk 0:01:44]} 14. Bxf8 {[%clk 0:00:46]}  Qxf8 {[%clk 0:01:45]} 15. Bc4 {[%clk 0:00:41]}  Kg7 {[%clk 0:01:32]} 16. Rab1 {[%clk 0:00:34]}  Qd6 {[%clk 0:01:18]} 17. Rfd1 {[%clk 0:00:31]}  Rxd1+ {[%clk 0:01:18]} 18. Rxd1 {[%clk 0:00:32]}  Be6 {[%clk 0:01:18]} 19. Bb3 {[%clk 0:00:27]}  Bxb3 {[%clk 0:01:14]} 20. axb3 {[%clk 0:00:28]}  Re8 {[%clk 0:01:13]} 21. Qg3 {[%clk 0:00:19]}  Qe6 {[%clk 0:01:09]} 22. c4 {[%clk 0:00:13]}  Qe1+ {[%clk 0:01:07]} 0-1


[Site "https://www.chess.com"]

[Event "Titled Tuesday Blitz November 07 Early 2023"]
[White "subham777"]
[Black "Martinez Ramirez, Lennis"]
[BlackFideId "3509079"]
[WhiteElo "2483"]
[BlackElo "2713"]
[Result "1/2-1/2"]
[Round "5"]
[TimeControl "180+1"]
[Date "2023.11.07"]
[WhiteClock "0:00:05"]
[BlackClock "0:00:04"]
[Board "94"]

1. e4 {[%clk 0:03:00]}  c5 {[%clk 0:02:59]} 2. Nf3 {[%clk 0:03:00]}  Nc6 {[%clk 0:03:00]} 3. Bb5 {[%clk 0:03:00]}  g6 {[%clk 0:03:00]} 4. O-O {[%clk 0:02:59]}  Bg7 {[%clk 0:03:01]} 5. c3 {[%clk 0:02:58]}  Nf6 {[%clk 0:03:01]} 6. Re1 {[%clk 0:02:58]}  O-O {[%clk 0:03:01]} 7. d4 {[%clk 0:02:58]}  cxd4 {[%clk 0:03:01]} 8. cxd4 {[%clk 0:02:58]}  d5 {[%clk 0:03:02]} 9. e5 {[%clk 0:02:58]}  Ne4 {[%clk 0:03:02]} 10. Nc3 {[%clk 0:02:59]}  Nxc3 {[%clk 0:03:01]} 11. bxc3 {[%clk 0:03:00]}  Na5 {[%clk 0:02:52]} 12. Bg5 {[%clk 0:02:48]}  Bf5 {[%clk 0:02:50]} 13. Rc1 {[%clk 0:02:29]}  Rc8 {[%clk 0:02:49]} 14. Bd3 {[%clk 0:02:27]}  Bxd3 {[%clk 0:02:49]} 15. Qxd3 {[%clk 0:02:28]}  f6 {[%clk 0:02:49]} 16. exf6 {[%clk 0:02:26]}  exf6 {[%clk 0:02:49]} 17. Bh4 {[%clk 0:02:25]}  Nc4 {[%clk 0:02:39]} 18. Nd2 {[%clk 0:02:18]}  Qd7 {[%clk 0:02:32]} 19. Bg3 {[%clk 0:02:13]}  Bh6 {[%clk 0:02:24]} 20. f4 {[%clk 0:02:07]}  Nd6 {[%clk 0:02:20]} 21. Qf3 {[%clk 0:01:56]}  Nf5 {[%clk 0:02:09]} 22. Nb3 {[%clk 0:01:42]}  b6 {[%clk 0:02:09]} 23. Re2 {[%clk 0:01:36]}  Rfe8 {[%clk 0:02:07]} 24. Rce1 {[%clk 0:01:29]}  Rxe2 {[%clk 0:02:05]} 25. Rxe2 {[%clk 0:01:29]}  Kf7 {[%clk 0:02:06]} 26. Be1 {[%clk 0:01:19]}  Re8 {[%clk 0:02:04]} 27. g4 {[%clk 0:01:11]}  Rxe2 {[%clk 0:02:03]} 28. Qxe2 {[%clk 0:01:11]}  Nd6 {[%clk 0:02:03]} 29. Bg3 {[%clk 0:01:06]}  Qb5 {[%clk 0:01:55]} 30. Qf3 {[%clk 0:00:56]}  Ne4 {[%clk 0:01:54]} 31. g5 {[%clk 0:00:49]}  Bg7 {[%clk 0:01:47]} 32. gxf6 {[%clk 0:00:33]}  Bxf6 {[%clk 0:01:33]} 33. f5 {[%clk 0:00:31]}  a5 {[%clk 0:01:33]} 34. fxg6+ {[%clk 0:00:22]}  hxg6 {[%clk 0:01:33]} 35. Be5 {[%clk 0:00:20]}  a4 {[%clk 0:01:34]} 36. Nd2 {[%clk 0:00:18]}  Qc6 {[%clk 0:01:13]} 37. Nxe4 {[%clk 0:00:17]}  dxe4 {[%clk 0:01:13]} 38. Qf4 {[%clk 0:00:17]}  b5 {[%clk 0:01:01]} 39. d5 {[%clk 0:00:11]}  Qb6+ {[%clk 0:00:41]} 40. Kg2 {[%clk 0:00:09]}  Kg7 {[%clk 0:00:35]} 41. d6 {[%clk 0:00:08]}  Bxe5 {[%clk 0:00:15]} 42. Qxe5+ {[%clk 0:00:09]}  Kh6 {[%clk 0:00:15]} 43. Qf4+ {[%clk 0:00:08]}  Kh5 {[%clk 0:00:10]} 44. Qe5+ {[%clk 0:00:08]}  g5 {[%clk 0:00:09]} 45. Qh8+ {[%clk 0:00:06]}  Kg4 {[%clk 0:00:10]} 46. d7 {[%clk 0:00:05]}  Qe3 {[%clk 0:00:05]} 47. d8=Q {[%clk 0:00:03]}  Qe2+ {[%clk 0:00:03]} 48. Kg1 {[%clk 0:00:04]}  Qe1+ {[%clk 0:00:04]} 49. Kg2 {[%clk 0:00:04]}  Qe2+ {[%clk 0:00:04]} 50. Kg1 {[%clk 0:00:05]}  Qe1+ {[%clk 0:00:05]} 51. Kg2 {[%clk 0:00:05]}  Qe2+ {[%clk 0:00:04]} 1/2-1/2


[Site "https://www.chess.com"]

[Event "Titled Tuesday Blitz November 07 Early 2023"]
[White "Kourkoulos-Arditis, Stamatis"]
[Black "Kanyamarala, Trisha"]
[WhiteFideId "4221990"]
[BlackFideId "45004722"]
[WhiteElo "2707"]
[BlackElo "2482"]
[Result "0-1"]
[Round "5"]
[TimeControl "180+1"]
[Date "2023.11.07"]
[WhiteClock "0:00:00"]
[BlackClock "0:00:11"]
[Board "95"]

1. b4 {[%clk 0:03:00]}  e5 {[%clk 0:02:49]} 2. Bb2 {[%clk 0:03:00]}  d6 {[%clk 0:02:47]} 3. c4 {[%clk 0:02:58]}  Nf6 {[%clk 0:02:46]} 4. e3 {[%clk 0:02:57]}  Be7 {[%clk 0:02:46]} 5. Nf3 {[%clk 0:02:57]}  O-O {[%clk 0:02:46]} 6. Be2 {[%clk 0:02:57]}  Bg4 {[%clk 0:02:46]} 7. d3 {[%clk 0:02:56]}  Nbd7 {[%clk 0:02:45]} 8. O-O {[%clk 0:02:56]}  e4 {[%clk 0:02:44]} 9. dxe4 {[%clk 0:02:54]}  Nxe4 {[%clk 0:02:44]} 10. h3 {[%clk 0:02:53]}  Bh5 {[%clk 0:02:43]} 11. Nbd2 {[%clk 0:02:52]}  Ndf6 {[%clk 0:02:39]} 12. Nd4 {[%clk 0:02:38]}  Bxe2 {[%clk 0:02:36]} 13. Qxe2 {[%clk 0:02:39]}  d5 {[%clk 0:02:32]} 14. Rfd1 {[%clk 0:02:32]}  Nxd2 {[%clk 0:02:28]} 15. Rxd2 {[%clk 0:02:30]}  Bxb4 {[%clk 0:02:28]} 16. Rdd1 {[%clk 0:02:28]}  c6 {[%clk 0:02:20]} 17. Nf5 {[%clk 0:02:26]}  Be7 {[%clk 0:02:01]} 18. cxd5 {[%clk 0:02:21]}  cxd5 {[%clk 0:02:01]} 19. e4 {[%clk 0:02:16]}  Re8 {[%clk 0:01:56]} 20. exd5 {[%clk 0:01:14]}  Ba3 {[%clk 0:01:41]} 21. Qd2 {[%clk 0:01:14]}  Ne4 {[%clk 0:01:39]} 22. Qd4 {[%clk 0:01:07]}  Bxb2 {[%clk 0:01:36]} 23. Qxb2 {[%clk 0:01:08]}  Qg5 {[%clk 0:01:35]} 24. g4 {[%clk 0:00:51]}  h5 {[%clk 0:01:27]} 25. Qc1 {[%clk 0:00:48]}  Qg6 {[%clk 0:01:22]} 26. Qf4 {[%clk 0:00:47]}  Nc3 {[%clk 0:01:15]} 27. Re1 {[%clk 0:00:34]}  Ne2+ {[%clk 0:01:15]} 28. Rxe2 {[%clk 0:00:34]}  Rxe2 {[%clk 0:01:15]} 29. Kg2 {[%clk 0:00:18]}  Rae8 {[%clk 0:01:11]} 30. d6 {[%clk 0:00:18]}  Qe6 {[%clk 0:00:51]} 31. Rd1 {[%clk 0:00:18]}  Qe4+ {[%clk 0:00:44]} 32. Qxe4 {[%clk 0:00:19]}  R2xe4 {[%clk 0:00:45]} 33. Kf3 {[%clk 0:00:19]}  R4e5 {[%clk 0:00:43]} 34. d7 {[%clk 0:00:15]}  Rd8 {[%clk 0:00:43]} 35. Kf4 {[%clk 0:00:15]}  f6 {[%clk 0:00:41]} 36. gxh5 {[%clk 0:00:14]}  Ra5 {[%clk 0:00:34]} 37. h6 {[%clk 0:00:07]}  g5+ {[%clk 0:00:32]} 38. Kg4 {[%clk 0:00:07]}  Ra4+ {[%clk 0:00:32]} 39. Kh5 {[%clk 0:00:07]}  Kh7 {[%clk 0:00:30]} 40. Rd6 {[%clk 0:00:08]}  Rf4 {[%clk 0:00:22]} 41. Rxf6 {[%clk 0:00:08]}  Rxd7 {[%clk 0:00:23]} 42. Kxg5 {[%clk 0:00:08]}  Rxf2 {[%clk 0:00:22]} 43. Re6 {[%clk 0:00:07]}  Rf7 {[%clk 0:00:16]} 44. Re5 {[%clk 0:00:04]}  b5 {[%clk 0:00:12]} 45. Rxb5 {[%clk 0:00:00]}  Rxa2 {[%clk 0:00:11]} 0-1


[Site "https://www.chess.com"]

[Event "Titled Tuesday Blitz November 07 Early 2023"]
[White "Remolar Gallen, Jose"]
[Black "Nagare Kaivalya Sandip"]
[WhiteFideId "2215187"]
[BlackFideId "25957929"]
[WhiteElo "2477"]
[BlackElo "2692"]
[Result "0-1"]
[Round "5"]
[TimeControl "180+1"]
[Date "2023.11.07"]
[WhiteClock "0:00:30"]
[BlackClock "0:02:18"]
[Board "96"]

1. e4 {[%clk 0:02:57]}  e5 {[%clk 0:02:56]} 2. Nf3 {[%clk 0:02:53]}  Nc6 {[%clk 0:02:56]} 3. Bb5 {[%clk 0:02:51]}  f5 {[%clk 0:02:56]} 4. d3 {[%clk 0:02:49]}  Nf6 {[%clk 0:02:56]} 5. O-O {[%clk 0:02:48]}  fxe4 {[%clk 0:02:51]} 6. dxe4 {[%clk 0:02:48]}  Bc5 {[%clk 0:02:44]} 7. Bg5 {[%clk 0:02:44]}  d6 {[%clk 0:02:44]} 8. Nc3 {[%clk 0:02:42]}  O-O {[%clk 0:02:43]} 9. Nd5 {[%clk 0:02:36]}  Bg4 {[%clk 0:02:39]} 10. h3 {[%clk 0:02:25]}  Bh5 {[%clk 0:02:39]} 11. c3 {[%clk 0:02:12]}  Kh8 {[%clk 0:02:35]} 12. Qd3 {[%clk 0:02:08]}  a6 {[%clk 0:02:31]} 13. Ba4 {[%clk 0:02:05]}  Nxd5 {[%clk 0:02:25]} 14. exd5 {[%clk 0:01:36]}  Rxf3 {[%clk 0:02:19]} 15. Bxd8 {[%clk 0:00:30]}  Rxd3 {[%clk 0:02:18]} 0-1


[Site "https://www.chess.com"]